[Event "Titled Tuesday Blitz July 18 Late 2023"]
[White "Lewicki, Miroslaw"]
[Black "whiteglovethief"]
[WhiteFideId "1113380"]
[WhiteElo "2653"]
[BlackElo "2381"]
[Result "0-1"]
[Round "2"]
[TimeControl "180+2"]
[Date "2023.07.18"]
[WhiteClock "0:00:09"]
[BlackClock "0:01:29"]
[Board "117"]

1. e3 {[%clk 0:02:57]}  d5 {[%clk 0:02:58]} 2. Ke2 {[%clk 0:02:57]}  e5 {[%clk 0:02:59]} 3. d3 {[%clk 0:02:57]}  Nf6 {[%clk 0:02:59]} 4. Kd2 {[%clk 0:02:58]}  c5 {[%clk 0:02:59]} 5. Qe2 {[%clk 0:02:58]}  Nc6 {[%clk 0:03:00]} 6. Ke1 {[%clk 0:02:59]}  Be7 {[%clk 0:02:59]} 7. Qd1 {[%clk 0:02:59]}  O-O {[%clk 0:02:59]} 8. g3 {[%clk 0:03:00]}  Ne8 {[%clk 0:02:57]} 9. Bg2 {[%clk 0:03:00]}  f5 {[%clk 0:02:58]} 10. Ne2 {[%clk 0:03:00]}  Nf6 {[%clk 0:02:57]} 11. b3 {[%clk 0:03:01]}  d4 {[%clk 0:02:54]} 12. exd4 {[%clk 0:02:58]}  cxd4 {[%clk 0:02:53]} 13. h3 {[%clk 0:02:55]}  Be6 {[%clk 0:02:50]} 14. Kf1 {[%clk 0:02:55]}  Rc8 {[%clk 0:02:49]} 15. Nd2 {[%clk 0:02:55]}  Nb4 {[%clk 0:02:47]} 16. Nc4 {[%clk 0:02:42]}  e4 {[%clk 0:02:47]} 17. a3 {[%clk 0:02:40]}  Nxc2 {[%clk 0:02:44]} 18. Qxc2 {[%clk 0:02:38]}  b5 {[%clk 0:02:45]} 19. Nf4 {[%clk 0:01:55]}  bxc4 {[%clk 0:02:27]} 20. Nxe6 {[%clk 0:01:49]}  cxd3 {[%clk 0:02:28]} 21. Nxd8 {[%clk 0:01:43]}  Rxc2 {[%clk 0:02:28]} 22. Ne6 {[%clk 0:01:44]}  Rfc8 {[%clk 0:02:24]} 23. Bf4 {[%clk 0:01:32]}  Nd5 {[%clk 0:02:18]} 24. Kg1 {[%clk 0:00:57]}  Kf7 {[%clk 0:02:12]} 25. Nxd4 {[%clk 0:00:56]}  Nxf4 {[%clk 0:02:08]} 26. gxf4 {[%clk 0:00:53]}  Rc1+ {[%clk 0:02:06]} 27. Kh2 {[%clk 0:00:49]}  Rxa1 {[%clk 0:02:05]} 28. Rxa1 {[%clk 0:00:46]}  Bf6 {[%clk 0:02:06]} 29. Rb1 {[%clk 0:00:22]}  Bxd4 {[%clk 0:02:04]} 30. Kg3 {[%clk 0:00:19]}  Rc2 {[%clk 0:01:55]} 31. Rf1 {[%clk 0:00:19]}  d2 {[%clk 0:01:52]} 32. Rd1 {[%clk 0:00:17]}  Rc3+ {[%clk 0:01:48]} 33. f3 {[%clk 0:00:14]}  e3 {[%clk 0:01:48]} 34. Bf1 {[%clk 0:00:14]}  Rxb3 {[%clk 0:01:44]} 35. Bc4+ {[%clk 0:00:09]}  Kf6 {[%clk 0:01:45]} 36. Kg2 {[%clk 0:00:04]}  Rxa3 {[%clk 0:01:43]} 37. Kf1 {[%clk 0:00:04]}  Rc3 {[%clk 0:01:42]} 38. Ba6 {[%clk 0:00:02]}  Rc6 {[%clk 0:01:40]} 39. Bb5 {[%clk 0:00:02]}  Rc1 {[%clk 0:01:41]} 40. Ke2 {[%clk 0:00:02]}  a5 {[%clk 0:01:39]} 41. Ba4 {[%clk 0:00:02]}  h6 {[%clk 0:01:37]} 42. h4 {[%clk 0:00:01]}  Rxd1 {[%clk 0:01:32]} 43. Bxd1 {[%clk 0:00:01]}  Kg6 {[%clk 0:01:31]} 44. Kd3 {[%clk 0:00:01]}  Bb6 {[%clk 0:01:29]} 45. Kc4 {[%clk 0:00:02]}  Kh5 {[%clk 0:01:28]} 46. Kd5 {[%clk 0:00:02]}  Kxh4 {[%clk 0:01:28]} 47. Ke5 {[%clk 0:00:03]}  Kg3 {[%clk 0:01:28]} 48. Kxf5 {[%clk 0:00:03]}  Kf2 {[%clk 0:01:28]} 49. Kg6 {[%clk 0:00:04]}  e2 {[%clk 0:01:28]} 50. Bxe2 {[%clk 0:00:04]}  Kxe2 {[%clk 0:01:29]} 51. Kxg7 {[%clk 0:00:05]}  d1=Q {[%clk 0:01:29]} 52. f5 {[%clk 0:00:05]}  Bd4+ {[%clk 0:01:30]} 53. Kg6 {[%clk 0:00:06]}  Kxf3 {[%clk 0:01:30]} 54. Kh5 {[%clk 0:00:06]}  Kf4+ {[%clk 0:01:28]} 55. Kg6 {[%clk 0:00:07]}  h5 {[%clk 0:01:26]} 56. Kf7 {[%clk 0:00:08]}  h4 {[%clk 0:01:27]} 57. Kg6 {[%clk 0:00:07]}  h3 {[%clk 0:01:27]} 58. Kf7 {[%clk 0:00:07]}  h2 {[%clk 0:01:28]} 59. Ke6 {[%clk 0:00:07]}  h1=Q {[%clk 0:01:28]} 60. Kd6 {[%clk 0:00:08]}  a4 {[%clk 0:01:28]} 61. Ke7 {[%clk 0:00:09]}  a3 {[%clk 0:01:29]} 62. Kd8 {[%clk 0:00:09]}  a2 {[%clk 0:01:28]} 63. Kc7 {[%clk 0:00:10]}  a1=Q {[%clk 0:01:29]} 64. Kb8 {[%clk 0:00:11]}  Qc3 {[%clk 0:01:29]} 65. f6 {[%clk 0:00:09]}  Qb1# {[%clk 0:01:29]} 0-1


[Site "https://www.chess.com"]

[Event "Titled Tuesday Blitz July 18 Late 2023"]
[White "Ovchinnikov, Vsevolod"]
[Black "Calin, Alexandru"]
[WhiteFideId "24176842"]
[BlackFideId "1222961"]
[WhiteElo "2631"]
[BlackElo "2377"]
[Result "1-0"]
[Round "2"]
[TimeControl "180+2"]
[Date "2023.07.18"]
[WhiteClock "0:00:07"]
[BlackClock "0:00:01"]
[Board "118"]

1. d4 {[%clk 0:03:00]}  Nf6 {[%clk 0:02:58]} 2. c4 {[%clk 0:03:01]}  e6 {[%clk 0:02:55]} 3. g3 {[%clk 0:03:01]}  d5 {[%clk 0:02:48]} 4. Nf3 {[%clk 0:03:02]}  dxc4 {[%clk 0:02:48]} 5. Bg2 {[%clk 0:03:02]}  c6 {[%clk 0:02:47]} 6. a4 {[%clk 0:03:01]}  Be7 {[%clk 0:02:45]} 7. O-O {[%clk 0:02:59]}  O-O {[%clk 0:02:44]} 8. Ne5 {[%clk 0:03:00]}  Nbd7 {[%clk 0:02:42]} 9. Nxc4 {[%clk 0:03:00]}  Nb6 {[%clk 0:02:29]} 10. Ne5 {[%clk 0:03:01]}  Bd7 {[%clk 0:02:25]} 11. Nc3 {[%clk 0:02:40]}  Nbd5 {[%clk 0:02:09]} 12. e4 {[%clk 0:02:34]}  Nxc3 {[%clk 0:02:06]} 13. bxc3 {[%clk 0:02:35]}  c5 {[%clk 0:01:59]} 14. d5 {[%clk 0:01:43]}  exd5 {[%clk 0:01:55]} 15. exd5 {[%clk 0:01:43]}  Bd6 {[%clk 0:01:54]} 16. Nc4 {[%clk 0:01:40]}  Bf5 {[%clk 0:01:38]} 17. Re1 {[%clk 0:01:32]}  h6 {[%clk 0:01:28]} 18. Qb3 {[%clk 0:01:18]}  b6 {[%clk 0:01:21]} 19. a5 {[%clk 0:01:08]}  bxa5 {[%clk 0:01:01]} 20. Nxa5 {[%clk 0:01:02]}  Qd7 {[%clk 0:00:53]} 21. c4 {[%clk 0:00:50]}  Rfe8 {[%clk 0:00:43]} 22. Bb2 {[%clk 0:00:50]}  Ne4 {[%clk 0:00:33]} 23. Nc6 {[%clk 0:00:39]}  a6 {[%clk 0:00:21]} 24. Re3 {[%clk 0:00:34]}  Ng5 {[%clk 0:00:18]} 25. Rae1 {[%clk 0:00:19]}  Rxe3 {[%clk 0:00:17]} 26. Qxe3 {[%clk 0:00:20]}  Bh3 {[%clk 0:00:16]} 27. Bh1 {[%clk 0:00:16]}  Bf5 {[%clk 0:00:11]} 28. Bg2 {[%clk 0:00:15]}  Bh3 {[%clk 0:00:11]} 29. f4 {[%clk 0:00:12]}  Bxg2 {[%clk 0:00:11]} 30. Kxg2 {[%clk 0:00:13]}  Qh3+ {[%clk 0:00:11]} 31. Kg1 {[%clk 0:00:13]}  Rc8 {[%clk 0:00:01]} 32. fxg5 {[%clk 0:00:08]}  hxg5 {[%clk 0:00:02]} 33. Qxg5 {[%clk 0:00:07]}  a5 {[%clk 0:00:01]} 34. Qxg7# {[%clk 0:00:07]} 1-0


[Site "https://www.chess.com"]

[Event "Titled Tuesday Blitz July 18 Late 2023"]
[White "Merino Garcia, Rafael II"]
[Black "Pinero Rodriguez, Carlos Jose"]
[WhiteFideId "2209128"]
[BlackFideId "3901726"]
[WhiteElo "2370"]
[BlackElo "2579"]
[Result "0-1"]
[Round "2"]
[TimeControl "180+2"]
[Date "2023.07.18"]
[WhiteClock "0:00:10"]
[BlackClock "0:00:10"]
[Board "123"]

1. d4 {[%clk 0:03:00]}  Nf6 {[%clk 0:02:59]} 2. Nf3 {[%clk 0:03:01]}  e6 {[%clk 0:02:58]} 3. g3 {[%clk 0:03:01]}  c5 {[%clk 0:02:57]} 4. c4 {[%clk 0:02:59]}  cxd4 {[%clk 0:02:56]} 5. Nxd4 {[%clk 0:02:58]}  a6 {[%clk 0:02:56]} 6. Bg2 {[%clk 0:02:58]}  Nc6 {[%clk 0:02:57]} 7. O-O {[%clk 0:02:54]}  Be7 {[%clk 0:02:57]} 8. Nc3 {[%clk 0:02:52]}  Qc7 {[%clk 0:02:56]} 9. e4 {[%clk 0:02:37]}  O-O {[%clk 0:02:56]} 10. Be3 {[%clk 0:02:34]}  d6 {[%clk 0:02:55]} 11. Rc1 {[%clk 0:02:33]}  Ne5 {[%clk 0:02:55]} 12. b3 {[%clk 0:02:29]}  Bd7 {[%clk 0:02:55]} 13. h3 {[%clk 0:02:28]}  Rac8 {[%clk 0:02:54]} 14. f4 {[%clk 0:02:27]}  Ng6 {[%clk 0:02:53]} 15. f5 {[%clk 0:02:16]}  Ne5 {[%clk 0:02:52]} 16. Qd2 {[%clk 0:01:59]}  Qb8 {[%clk 0:02:50]} 17. g4 {[%clk 0:01:52]}  h6 {[%clk 0:02:44]} 18. g5 {[%clk 0:01:40]}  hxg5 {[%clk 0:02:43]} 19. Bxg5 {[%clk 0:01:40]}  b5 {[%clk 0:02:41]} 20. cxb5 {[%clk 0:01:27]}  axb5 {[%clk 0:02:42]} 21. b4 {[%clk 0:01:26]}  Qa7 {[%clk 0:02:17]} 22. Kh1 {[%clk 0:01:26]}  Nc4 {[%clk 0:02:16]} 23. Qf2 {[%clk 0:01:23]}  Qb6 {[%clk 0:01:56]} 24. Rcd1 {[%clk 0:01:12]}  Ne5 {[%clk 0:01:50]} 25. Qg3 {[%clk 0:01:10]}  Rc4 {[%clk 0:01:22]} 26. Nce2 {[%clk 0:00:58]}  Rxb4 {[%clk 0:00:32]} 27. Rg1 {[%clk 0:00:54]}  Bd8 {[%clk 0:00:17]} 28. Be3 {[%clk 0:00:38]}  Nh5 {[%clk 0:00:13]} 29. Qf2 {[%clk 0:00:34]}  Qb8 {[%clk 0:00:11]} 30. Bf3 {[%clk 0:00:34]}  Nf6 {[%clk 0:00:10]} 31. Qg3 {[%clk 0:00:31]}  Ne8 {[%clk 0:00:10]} 32. Bh6 {[%clk 0:00:29]}  Bf6 {[%clk 0:00:11]} 33. Nf4 {[%clk 0:00:28]}  exf5 {[%clk 0:00:10]} 34. Nh5 {[%clk 0:00:27]}  g6 {[%clk 0:00:09]} 35. Bxf8 {[%clk 0:00:25]}  Kxf8 {[%clk 0:00:09]} 36. Nxf6 {[%clk 0:00:25]}  Nxf6 {[%clk 0:00:10]} 37. Qg5 {[%clk 0:00:23]}  Ng8 {[%clk 0:00:09]} 38. exf5 {[%clk 0:00:22]}  Rxd4 {[%clk 0:00:09]} 39. Rxd4 {[%clk 0:00:20]}  Nxf3 {[%clk 0:00:09]} 40. Qe3 {[%clk 0:00:14]}  Nxd4 {[%clk 0:00:08]} 41. fxg6 {[%clk 0:00:14]}  Bc6+ {[%clk 0:00:09]} 42. Kh2 {[%clk 0:00:13]}  d5+ {[%clk 0:00:10]} 43. Rg3 {[%clk 0:00:13]}  Nf5 {[%clk 0:00:10]} 44. g7+ {[%clk 0:00:14]}  Nxg7 {[%clk 0:00:09]} 45. Qc5+ {[%clk 0:00:15]}  Ne7 {[%clk 0:00:07]} 46. h4 {[%clk 0:00:11]}  Nf5 {[%clk 0:00:08]} 47. Qf2 {[%clk 0:00:10]}  Qxg3+ {[%clk 0:00:08]} 48. Qxg3 {[%clk 0:00:10]}  Nxg3 {[%clk 0:00:09]} 49. Kxg3 {[%clk 0:00:11]}  d4 {[%clk 0:00:10]} 50. Kf4 {[%clk 0:00:11]}  Ng6+ {[%clk 0:00:10]} 51. Kg3 {[%clk 0:00:10]}  Nxh4 {[%clk 0:00:10]} 52. Kf2 {[%clk 0:00:11]}  d3 {[%clk 0:00:11]} 53. Ke3 {[%clk 0:00:11]}  Be4 {[%clk 0:00:10]} 54. Kd2 {[%clk 0:00:10]}  f5 {[%clk 0:00:10]} 0-1


[Site "https://www.chess.com"]

[Event "Titled Tuesday Blitz July 18 Late 2023"]
[White "Dragomirescu, Robin-Alexandru"]
[Black "Romero Ruscalleda, Josep"]
[WhiteFideId "1213849"]
[BlackFideId "2231859"]
[WhiteElo "2578"]
[BlackElo "2367"]
[Result "1-0"]
[Round "2"]
[TimeControl "180+2"]
[Date "2023.07.18"]
[WhiteClock "0:00:28"]
[BlackClock "0:00:11"]
[Board "124"]

1. b3 {[%clk 0:03:00]}  g6 {[%clk 0:03:00]} 2. Bb2 {[%clk 0:03:00]}  Nf6 {[%clk 0:03:00]} 3. Bxf6 {[%clk 0:03:01]}  exf6 {[%clk 0:03:00]} 4. c4 {[%clk 0:03:02]}  Bg7 {[%clk 0:03:00]} 5. Nc3 {[%clk 0:03:02]}  O-O {[%clk 0:03:00]} 6. Rc1 {[%clk 0:03:03]}  c6 {[%clk 0:02:59]} 7. g3 {[%clk 0:02:59]}  d6 {[%clk 0:02:59]} 8. Bg2 {[%clk 0:02:59]}  Nd7 {[%clk 0:02:58]} 9. Nf3 {[%clk 0:02:59]}  Ne5 {[%clk 0:02:57]} 10. O-O {[%clk 0:02:58]}  Bg4 {[%clk 0:02:55]} 11. Nd4 {[%clk 0:02:32]}  Qc8 {[%clk 0:02:40]} 12. f4 {[%clk 0:02:31]}  c5 {[%clk 0:02:28]} 13. Ndb5 {[%clk 0:02:29]}  Nc6 {[%clk 0:02:15]} 14. Nxd6 {[%clk 0:01:58]}  Qd7 {[%clk 0:02:14]} 15. Nde4 {[%clk 0:01:57]}  b6 {[%clk 0:02:10]} 16. Nd5 {[%clk 0:01:54]}  Qd8 {[%clk 0:01:57]} 17. h3 {[%clk 0:01:52]}  Be6 {[%clk 0:01:54]} 18. Nec3 {[%clk 0:01:48]}  Rc8 {[%clk 0:01:51]} 19. e3 {[%clk 0:01:45]}  f5 {[%clk 0:01:41]} 20. a3 {[%clk 0:01:41]}  Re8 {[%clk 0:01:40]} 21. Qf3 {[%clk 0:01:36]}  Na5 {[%clk 0:01:35]} 22. Qd1 {[%clk 0:01:17]}  a6 {[%clk 0:01:35]} 23. a4 {[%clk 0:01:13]}  Nc6 {[%clk 0:01:33]} 24. Qf3 {[%clk 0:01:09]}  b5 {[%clk 0:00:54]} 25. axb5 {[%clk 0:01:09]}  axb5 {[%clk 0:00:54]} 26. Nxb5 {[%clk 0:01:06]}  Nb4 {[%clk 0:00:52]} 27. Nxb4 {[%clk 0:01:01]}  cxb4 {[%clk 0:00:52]} 28. d4 {[%clk 0:01:01]}  Qb6 {[%clk 0:00:46]} 29. Qb7 {[%clk 0:00:36]}  Qa5 {[%clk 0:00:44]} 30. Ra1 {[%clk 0:00:36]}  Qd8 {[%clk 0:00:44]} 31. Ra7 {[%clk 0:00:33]}  Rb8 {[%clk 0:00:36]} 32. Qf3 {[%clk 0:00:31]}  Bd7 {[%clk 0:00:22]} 33. Nd6 {[%clk 0:00:29]}  Re6 {[%clk 0:00:21]} 34. c5 {[%clk 0:00:30]}  Qe7 {[%clk 0:00:15]} 35. Kf2 {[%clk 0:00:28]}  Re8 {[%clk 0:00:14]} 36. Nxe8 {[%clk 0:00:27]}  Qxe8 {[%clk 0:00:11]} 37. Ra8 {[%clk 0:00:28]} 1-0


[Site "https://www.chess.com"]

[Event "Titled Tuesday Blitz July 18 Late 2023"]
[White "Kretchetov, Alexandre"]
[Black "Rodriguez Santiago, Jaime"]
[WhiteFideId "4124588"]
[BlackFideId "3100898"]
[WhiteElo "2570"]
[BlackElo "2362"]
[Result "1-0"]
[Round "2"]
[TimeControl "180+2"]
[Date "2023.07.18"]
[WhiteClock "0:01:34"]
[BlackClock "0:00:18"]
[Board "126"]

1. d4 {[%clk 0:02:56]}  Nf6 {[%clk 0:02:57]} 2. c4 {[%clk 0:02:56]}  e6 {[%clk 0:02:56]} 3. Nc3 {[%clk 0:02:55]}  Bb4 {[%clk 0:02:54]} 4. Qc2 {[%clk 0:02:55]}  O-O {[%clk 0:02:53]} 5. Bg5 {[%clk 0:02:51]}  d5 {[%clk 0:02:43]} 6. cxd5 {[%clk 0:02:51]}  exd5 {[%clk 0:02:42]} 7. e3 {[%clk 0:02:51]}  c5 {[%clk 0:02:34]} 8. dxc5 {[%clk 0:02:50]}  d4 {[%clk 0:02:30]} 9. O-O-O {[%clk 0:02:49]}  Bxc3 {[%clk 0:02:18]} 10. bxc3 {[%clk 0:02:46]}  Qa5 {[%clk 0:02:02]} 11. Bxf6 {[%clk 0:02:42]}  gxf6 {[%clk 0:01:44]} 12. cxd4 {[%clk 0:02:42]}  Nc6 {[%clk 0:01:31]} 13. Bc4 {[%clk 0:02:40]}  b5 {[%clk 0:01:23]} 14. Bb3 {[%clk 0:02:36]}  Nb4 {[%clk 0:01:20]} 15. Qd2 {[%clk 0:02:31]}  Bf5 {[%clk 0:01:16]} 16. Qb2 {[%clk 0:02:21]}  Nd3+ {[%clk 0:00:58]} 17. Rxd3 {[%clk 0:02:20]}  Bxd3 {[%clk 0:00:59]} 18. Nf3 {[%clk 0:02:20]}  Bc4 {[%clk 0:00:57]} 19. Rd1 {[%clk 0:02:16]}  Qc7 {[%clk 0:00:48]} 20. h3 {[%clk 0:02:05]}  a5 {[%clk 0:00:47]} 21. Nd2 {[%clk 0:02:04]}  Be6 {[%clk 0:00:46]} 22. Ne4 {[%clk 0:02:01]}  Bxb3 {[%clk 0:00:37]} 23. axb3 {[%clk 0:01:59]}  Qe7 {[%clk 0:00:34]} 24. d5 {[%clk 0:01:56]}  Qxe4 {[%clk 0:00:32]} 25. Rd4 {[%clk 0:01:54]}  Qe5 {[%clk 0:00:28]} 26. d6 {[%clk 0:01:48]}  Qxc5+ {[%clk 0:00:27]} 27. Kb1 {[%clk 0:01:49]}  Qf5+ {[%clk 0:00:23]} 28. Ka2 {[%clk 0:01:48]}  Rfd8 {[%clk 0:00:23]} 29. Rg4+ {[%clk 0:01:46]}  Kf8 {[%clk 0:00:23]} 30. e4 {[%clk 0:01:45]}  Qe6 {[%clk 0:00:20]} 31. Qd2 {[%clk 0:01:40]}  Rxd6 {[%clk 0:00:19]} 32. Qh6+ {[%clk 0:01:38]}  Ke7 {[%clk 0:00:19]} 33. e5 {[%clk 0:01:38]}  Rd2+ {[%clk 0:00:18]} 34. Qxd2 {[%clk 0:01:37]}  a4 {[%clk 0:00:19]} 35. exf6+ {[%clk 0:01:35]}  Ke8 {[%clk 0:00:18]} 36. Rg8# {[%clk 0:01:34]} 1-0


[Site "https://www.chess.com"]

[Event "Titled Tuesday Blitz July 18 Late 2023"]
[White "Peatman, Carter"]
[Black "Manukyan, Artyom"]
[WhiteFideId "2096480"]
[BlackFideId "13305786"]
[WhiteElo "2360"]
[BlackElo "2563"]
[Result "0-1"]
[Round "2"]
[TimeControl "180+2"]
[Date "2023.07.18"]
[WhiteClock "0:00:05"]
[BlackClock "0:00:24"]
[Board "127"]

1. e4 {[%clk 0:02:59]}  Nf6 {[%clk 0:02:59]} 2. Nc3 {[%clk 0:02:54]}  d5 {[%clk 0:02:58]} 3. exd5 {[%clk 0:02:55]}  Nxd5 {[%clk 0:02:59]} 4. Nxd5 {[%clk 0:02:55]}  Qxd5 {[%clk 0:03:00]} 5. d4 {[%clk 0:02:54]}  Nc6 {[%clk 0:02:58]} 6. Nf3 {[%clk 0:02:53]}  Bg4 {[%clk 0:02:57]} 7. Be3 {[%clk 0:02:50]}  O-O-O {[%clk 0:02:55]} 8. Be2 {[%clk 0:02:50]}  Qh5 {[%clk 0:02:41]} 9. c3 {[%clk 0:02:48]}  e5 {[%clk 0:02:40]} 10. h3 {[%clk 0:02:48]}  exd4 {[%clk 0:02:39]} 11. Nxd4 {[%clk 0:02:44]}  Bxe2 {[%clk 0:02:36]} 12. Qxe2 {[%clk 0:02:41]}  Qxe2+ {[%clk 0:02:32]} 13. Nxe2 {[%clk 0:02:42]}  Ne5 {[%clk 0:02:28]} 14. O-O {[%clk 0:02:37]}  Nc4 {[%clk 0:02:28]} 15. Bc1 {[%clk 0:02:33]}  Bc5 {[%clk 0:02:28]} 16. b3 {[%clk 0:02:31]}  Ne5 {[%clk 0:02:23]} 17. Bf4 {[%clk 0:02:08]}  Nd3 {[%clk 0:02:21]} 18. Bg3 {[%clk 0:02:08]}  Rhe8 {[%clk 0:02:19]} 19. Nc1 {[%clk 0:02:03]}  h5 {[%clk 0:02:02]} 20. b4 {[%clk 0:01:58]}  Bb6 {[%clk 0:02:01]} 21. Nb3 {[%clk 0:01:56]}  g5 {[%clk 0:01:57]} 22. h4 {[%clk 0:01:51]}  g4 {[%clk 0:01:55]} 23. a4 {[%clk 0:01:47]}  a6 {[%clk 0:01:54]} 24. b5 {[%clk 0:01:43]}  f5 {[%clk 0:01:50]} 25. a5 {[%clk 0:01:31]}  Ba7 {[%clk 0:01:40]} 26. b6 {[%clk 0:01:15]}  cxb6 {[%clk 0:01:36]} 27. c4 {[%clk 0:01:11]}  f4 {[%clk 0:01:33]} 28. Bh2 {[%clk 0:01:11]}  bxa5 {[%clk 0:01:30]} 29. c5 {[%clk 0:01:08]}  Re4 {[%clk 0:01:22]} 30. Rxa5 {[%clk 0:01:07]}  Rd5 {[%clk 0:01:19]} 31. c6 {[%clk 0:00:37]}  Rxa5 {[%clk 0:01:04]} 32. cxb7+ {[%clk 0:00:35]}  Kc7 {[%clk 0:01:01]} 33. Nxa5 {[%clk 0:00:36]}  g3 {[%clk 0:01:01]} 34. b8=Q+ {[%clk 0:00:28]}  Kxb8 {[%clk 0:00:59]} 35. Rb1+ {[%clk 0:00:24]}  Kc8 {[%clk 0:00:57]} 36. Nc6 {[%clk 0:00:18]}  Bxf2+ {[%clk 0:00:56]} 37. Kh1 {[%clk 0:00:14]}  Re1+ {[%clk 0:00:53]} 38. Rxe1 {[%clk 0:00:13]}  Nxe1 {[%clk 0:00:53]} 39. Bg1 {[%clk 0:00:13]}  Kc7 {[%clk 0:00:45]} 40. Ne5 {[%clk 0:00:11]}  a5 {[%clk 0:00:43]} 41. Nc4 {[%clk 0:00:10]}  a4 {[%clk 0:00:44]} 42. Na3 {[%clk 0:00:07]}  Kd6 {[%clk 0:00:40]} 43. Nb1 {[%clk 0:00:07]}  Ke5 {[%clk 0:00:39]} 44. Nd2 {[%clk 0:00:07]}  Kd4 {[%clk 0:00:37]} 45. Nb1 {[%clk 0:00:07]}  Kd3 {[%clk 0:00:34]} 46. Na3 {[%clk 0:00:04]}  Nc2 {[%clk 0:00:26]} 47. Nb1 {[%clk 0:00:01]}  a3 {[%clk 0:00:25]} 48. Nd2 {[%clk 0:00:02]}  Kxd2 {[%clk 0:00:22]} 49. Bh2 {[%clk 0:00:03]}  gxh2 {[%clk 0:00:21]} 50. Kxh2 {[%clk 0:00:04]}  f3 {[%clk 0:00:21]} 51. Kh1 {[%clk 0:00:05]}  a2 {[%clk 0:00:21]} 52. Kh2 {[%clk 0:00:06]}  a1=Q {[%clk 0:00:22]} 53. g4 {[%clk 0:00:06]}  Qg1+ {[%clk 0:00:23]} 54. Kh3 {[%clk 0:00:05]}  hxg4# {[%clk 0:00:24]} 0-1


[Site "https://www.chess.com"]

[Event "Titled Tuesday Blitz July 18 Late 2023"]
[White "Jorajuria Mendoza, Algol"]
[Black "Arencibia Monduy, Antonio"]
[WhiteFideId "5128897"]
[BlackFideId "3507939"]
[WhiteElo "2356"]
[BlackElo "2548"]
[Result "1-0"]
[Round "2"]
[TimeControl "180+2"]
[Date "2023.07.18"]
[WhiteClock "0:00:08"]
[BlackClock "0:00:00"]
[Board "129"]

1. e4 {[%clk 0:02:58]}  e6 {[%clk 0:03:00]} 2. d4 {[%clk 0:02:57]}  c5 {[%clk 0:03:00]} 3. c3 {[%clk 0:02:50]}  cxd4 {[%clk 0:02:59]} 4. cxd4 {[%clk 0:02:51]}  d5 {[%clk 0:03:00]} 5. Nc3 {[%clk 0:02:47]}  dxe4 {[%clk 0:02:59]} 6. Nxe4 {[%clk 0:02:48]}  Nf6 {[%clk 0:02:59]} 7. Bd3 {[%clk 0:02:45]}  Be7 {[%clk 0:02:59]} 8. Nf3 {[%clk 0:02:44]}  O-O {[%clk 0:02:59]} 9. O-O {[%clk 0:02:44]}  Nc6 {[%clk 0:02:43]} 10. Bg5 {[%clk 0:02:29]}  h6 {[%clk 0:02:21]} 11. Bh4 {[%clk 0:02:16]}  Nxe4 {[%clk 0:02:11]} 12. Bxe7 {[%clk 0:02:15]}  Qxe7 {[%clk 0:02:04]} 13. Bxe4 {[%clk 0:02:14]}  Rd8 {[%clk 0:02:05]} 14. Bxc6 {[%clk 0:02:14]}  bxc6 {[%clk 0:02:05]} 15. Qa4 {[%clk 0:02:12]}  c5 {[%clk 0:01:55]} 16. dxc5 {[%clk 0:02:04]}  Qxc5 {[%clk 0:01:55]} 17. Rac1 {[%clk 0:01:58]}  Qb6 {[%clk 0:01:55]} 18. b3 {[%clk 0:01:50]}  Bb7 {[%clk 0:01:55]} 19. Qf4 {[%clk 0:01:26]}  Bxf3 {[%clk 0:01:30]} 20. Qxf3 {[%clk 0:01:25]}  Rac8 {[%clk 0:01:30]} 21. Rxc8 {[%clk 0:01:02]}  Rxc8 {[%clk 0:01:30]} 22. Qe2 {[%clk 0:00:54]}  Qc5 {[%clk 0:01:18]} 23. g3 {[%clk 0:00:40]}  e5 {[%clk 0:01:16]} 24. Re1 {[%clk 0:00:36]}  f6 {[%clk 0:01:15]} 25. Rd1 {[%clk 0:00:32]}  Qc6 {[%clk 0:01:11]} 26. Qg4 {[%clk 0:00:20]}  Rf8 {[%clk 0:00:19]} 27. Rd7 {[%clk 0:00:16]}  Rf7 {[%clk 0:00:19]} 28. Rd8+ {[%clk 0:00:17]}  Rf8 {[%clk 0:00:17]} 29. Rd7 {[%clk 0:00:17]}  Rf7 {[%clk 0:00:17]} 30. Rd8+ {[%clk 0:00:18]}  Kh7 {[%clk 0:00:15]} 31. Qf5+ {[%clk 0:00:16]}  g6 {[%clk 0:00:15]} 32. Qd3 {[%clk 0:00:16]}  Qc1+ {[%clk 0:00:14]} 33. Kg2 {[%clk 0:00:17]}  Qc6+ {[%clk 0:00:15]} 34. Qd5 {[%clk 0:00:17]}  Qxd5+ {[%clk 0:00:15]} 35. Rxd5 {[%clk 0:00:18]}  Kg7 {[%clk 0:00:14]} 36. Kf3 {[%clk 0:00:17]}  Rc7 {[%clk 0:00:14]} 37. Ke3 {[%clk 0:00:14]}  Kf7 {[%clk 0:00:14]} 38. Kd3 {[%clk 0:00:13]}  Ke6 {[%clk 0:00:14]} 39. Rd8 {[%clk 0:00:12]}  f5 {[%clk 0:00:14]} 40. Rh8 {[%clk 0:00:12]}  h5 {[%clk 0:00:14]} 41. h4 {[%clk 0:00:11]}  e4+ {[%clk 0:00:14]} 42. Kd2 {[%clk 0:00:11]}  Rd7+ {[%clk 0:00:13]} 43. Ke2 {[%clk 0:00:11]}  Ke5 {[%clk 0:00:12]} 44. Re8+ {[%clk 0:00:10]}  Kd5 {[%clk 0:00:10]} 45. Rc8 {[%clk 0:00:09]}  Rd6 {[%clk 0:00:10]} 46. Ke3 {[%clk 0:00:09]}  Ke5 {[%clk 0:00:09]} 47. Rc5+ {[%clk 0:00:08]}  Ke6 {[%clk 0:00:09]} 48. Kf4 {[%clk 0:00:07]}  Kf6 {[%clk 0:00:06]} 49. Ke3 {[%clk 0:00:06]}  Rd3+ {[%clk 0:00:06]} 50. Ke2 {[%clk 0:00:06]}  Rd6 {[%clk 0:00:06]} 51. Rc7 {[%clk 0:00:06]}  a6 {[%clk 0:00:06]} 52. a3 {[%clk 0:00:07]}  Rb6 {[%clk 0:00:05]} 53. b4 {[%clk 0:00:07]}  Ke5 {[%clk 0:00:04]} 54. Rc5+ {[%clk 0:00:07]}  Kd4 {[%clk 0:00:04]} 55. Kd2 {[%clk 0:00:07]}  Rd6 {[%clk 0:00:04]} 56. Rc8 {[%clk 0:00:07]}  Ke5+ {[%clk 0:00:04]} 57. Ke2 {[%clk 0:00:07]}  Kf6 {[%clk 0:00:02]} 58. a4 {[%clk 0:00:07]}  Rb6 {[%clk 0:00:02]} 59. Rc4 {[%clk 0:00:06]}  Ke5 {[%clk 0:00:02]} 60. Ke3 {[%clk 0:00:06]}  Kd5 {[%clk 0:00:02]} 61. Rc5+ {[%clk 0:00:06]}  Kd6 {[%clk 0:00:02]} 62. Rc4 {[%clk 0:00:07]}  Kd5 {[%clk 0:00:03]} 63. Rd4+ {[%clk 0:00:07]}  Ke6 {[%clk 0:00:03]} 64. Kf4 {[%clk 0:00:05]}  Rc6 {[%clk 0:00:03]} 65. Kg5 {[%clk 0:00:05]}  Kf7 {[%clk 0:00:02]} 66. Rd7+ {[%clk 0:00:05]}  Ke6 {[%clk 0:00:02]} 67. Ra7 {[%clk 0:00:05]}  Kd5 {[%clk 0:00:02]} 68. b5 {[%clk 0:00:04]}  axb5 {[%clk 0:00:03]} 69. axb5 {[%clk 0:00:05]}  Rb6 {[%clk 0:00:03]} 70. Ra6 {[%clk 0:00:05]}  Rxb5 {[%clk 0:00:03]} 71. Kxg6 {[%clk 0:00:03]}  Rb2 {[%clk 0:00:03]} 72. Ra5+ {[%clk 0:00:04]}  Kd4 {[%clk 0:00:03]} 73. Rxf5 {[%clk 0:00:05]}  Rb6+ {[%clk 0:00:03]} 74. Kxh5 {[%clk 0:00:06]}  Rb8 {[%clk 0:00:02]} 75. Kg4 {[%clk 0:00:06]}  Rg8+ {[%clk 0:00:03]} 76. Kf4 {[%clk 0:00:06]}  Re8 {[%clk 0:00:03]} 77. h5 {[%clk 0:00:07]}  e3 {[%clk 0:00:00]} 78. fxe3+ {[%clk 0:00:08]} 1-0


[Site "https://www.chess.com"]